Workbook

Sheet Intro
A1: 0 | D1: PRE-DESIGN BACKGROUND
C2: Level
C3: SALES, cap. investment loan life | E3: =SUM(E4:E7) -> 13553000 | G3: C
C4: Apartments and vilas | E4: =J22+L22+N22+P22+R22+T22 -> 665000 | H4: Represented by local auxiliary east electric company Ltd., Bulgaria
C5: Hotel accomodations | E5: =J24+L24+N24+P24+R24+T24 -> 4104000
C6: Cruise inter terminal | E6: =J26+L26+N26+P26+R26+T26 -> 0 | I6: UNDER CONSTRUCTION
A7: Click the picture  to increase it | C7: Yacht marina | E7: =J28+L28+N28+P28+R28 -> 8784000 | K7: Exchange Rate | P7: stop
C9: COSTS p.ann. | E9: =BUDGET!G22+BUDGET!H22 -> 669033.5 | K9: 1 | L9: 1.96
C10: Variable costs | E10: =BUDGET!G54+BUDGET!H54 -> 534853.5
C11: Fixed costs | E11: =BUDGET!G64+BUDGET!H64 -> 87980 | I11: Cap.Goods | K11: Capital Goods and Services & Working Capital 8Import and local country expenses
C12: Marketing and RM | H12: 2
B13: Efficiency of selling real estates | D13: From market Bad, | E13: Greenhouse Good | F13: Increae / Decrease | H13: 3 | I13: Budget | K13: Cash-flow Pro-forma Budgeting 8Profitability and sensitivity analysis - pessimistic forecast
B14: Increased number of estates for sale | D14: 109 | E14: 92 | F14: =(E14-D14)/D14 -> -0.1559633028 | G14: =F5*(1-F14) -> 0
B15: Increased the sale price, € | D15: 3.2 | E15: 4.3 | F15: =(E15-D15)/D15 -> 0.34375 | G15: =G14*(1+F15) -> 0 | H15: 4Buyes | I15: Bayes | K15: Decision Analysis 8Operational risk management | O15: • Posterior Probability • Analyzing Theorem
E16: Revenue increase due to wheat, TOTAL: | F16: =G14/G15 ->  | H16: Click the image to change it | R16: Go to Bayes
N17: Area : | O17: 1 | P17: Yield t p.a/0.1 ha | R17: Price, p.t
B18: Overall probability of Bad event - loss of buyers of own product | F18: =Bayes!P21/100 -> 0.001435 | G18: =G15*(1-F18) -> 0 | O18: =O17-O19 -> 0.2 | P18: C | Q18: 70 | R18: 950
H19: 5-Yr Option | I19: FINAL RETAIL PRODUCTS FOR SALE | O19: 0.8 | P19: T | Q19: 90 | R19: 1140
H20: Nr of Yrs: | I20: =BUDGET!H86/2 -> 1 | K20: =BUDGET!J86/2 -> 2 | M20: =BUDGET!L86/2 -> 3 | O20: =BUDGET!N86/2 -> 4 | Q20: =BUDGET!P86/2 -> 5 | S20: Check
A21: The Dutch greenhouse complex | C21: Project Financing | H21: Prodicts | I21: t p.a. | J21: Total | K21: t p.a. | L21: Total | M21: t p.a. | N21: Total | O21: t p.a. | P21: Total | Q21: t p.a. | R21: Total | S21: =IF(SUM(E4:E7) = S30,"True","False") -> True
A22: ECA(s)  | B22: Export Credit Insurance | D22: Financial Modeling | H22: C | I22: =BUDGET!$P$2 -> 70 | J22: =BUDGET!$P$3 -> 133000 | K22: =BUDGET!$P$2 -> 70 | L22: =BUDGET!$P$3 -> 133000 | M22: =BUDGET!$P$2 -> 70 | N22: =BUDGET!$P$3 -> 133000 | O22: =BUDGET!$P$2 -> 70 | P22: =BUDGET!$P$3 -> 133000 | Q22: =BUDGET!$P$2 -> 70 | R22: =BUDGET!$P$3 -> 133000 | S22: =SUM(J22,L22,N22,P22,R22) -> 665000
A23: Kala Marina   Marketing | E23: Business Plan East Electric Company | H23: Outcome:
E24: Risk Assessment Еquivalence Ltd. | H24: T | I24: =BUDGET!$P$5 -> 820800 | J24: =BUDGET!$P$5 -> 820800 | K24: =BUDGET!$P$5 -> 820800 | L24: =BUDGET!$P$5 -> 820800 | M24: =BUDGET!$P$5 -> 820800 | N24: =BUDGET!$P$5 -> 820800 | O24: =BUDGET!$P$5 -> 820800 | P24: =BUDGET!$P$5 -> 820800 | Q24: =BUDGET!$P$5 -> 820800 | R24: =BUDGET!$P$5 -> 820800 | S24: =SUM(J24,L24,N24,P24,R24) -> 4104000
E25: Constructin of facilities | H25: Outcome:
E26: Infrastructure, power connection | H26: By-products | S26: =SUM(J26,L26,N26,P26,R26) -> 0
B27: Material products: | H27: 2ndstage of project
B28: Marine ← | F28: Intelectual products: | H28: Others, fromarket | J28: =BUDGET!$C$49 -> 1756800 | L28: =BUDGET!$C$49 -> 1756800 | N28: =BUDGET!$C$49 -> 1756800 | P28: =BUDGET!$C$49 -> 1756800 | R28: =BUDGET!$C$49 -> 1756800 | S28: =SUM(J28,L28,N28,P28,R28) -> 8784000
B29: Residential ← | E29: ← Risk assessment & management | H29: Outcome:
A30: Lseure ← | E30: ← Online cash-flow control system | H30: Budget, TOTAL | I30: =J22+J24+J26+J28 -> 2710600 | K30: =L22+L24+L26+L28 -> 2710600 | M30: =N22+N24+N26+N28 -> 2710600 | O30: =P22+P24+P26+P28 -> 2710600 | Q30: =R22+R24+R26+R28 -> 2710600 | S30: =SUM(S22:S29) -> 13553000
A31: Commercial ← | E31: ← History of sales and costs | H31: Outcome, TOTAL | I31: =J23+J25+J27+J29 -> 0 | K31: =L23+L25+L27+L29 -> 0 | M31: =N23+N25+N27+N29 -> 0 | O31: =P23+P25+P27+P29 -> 0 | Q31: =R23+R25+R27+R29 -> 0
B32: The applied color and image visualizations in all worksheets are not to impress you, but for faster and easier perception of the figures and formulas, as well as for their long term remembering for project financing success.
H41: *

Sheet Cap.Goods
D3: Level 1 | E3: Valister Greenhouse | K3: €1 ≈ | M3: =Intro!L9 -> 1.96 | R3: =Intro!L9 -> 1.96
M4: =BUDGET!D13 -> 2016-12-31 | O4: =BUDGET!E13 -> 2017-06-30
C5: Area | E5: EXPORT VALUE  | F5: Total | I5: Local country import | J5: € | M5: B. OWN FUNDS | O5: Export Prices | R5: Check
C6: [ha] | D6: Quantity | E6: 3 to 18 Mos deferred payments | F6: Quantity | G6: Single Prc | H6: Total Net Prc | I6: VAT ↓ | J6: TOTAL PRICE | M6: Loan "B" ↓ | O6: Settlement
C7: =Intro!O17 -> 1 | E7: WORKING CAPITAL (Loan "C") Export Credit Insurance Program | I7: 0.2 | M7: 0.15 | O7: Loan "C"
A8: Ø | C8: =C7-C9 -> 0.2 | D8: 5 | E8: Planting material (seeds) for C | F8: =C8*D8 -> 1 | G8: 500 | H8: =F8*G8 -> 500 | I8: =H8*$I$7 -> 100 | J8: =H8+I8 -> 600 | M8: =G8*$M$7 -> 75 | O8: =J8-N8 -> 600
A9: Ø | B9: 2 | C9: =Intro!O19 -> 0.8 | D9: 5 | E9: Planting material (seeds) for T | F9: =B9*C9*D9 -> 8 | G9: 500 | H9: =F9*G9 -> 4000 | I9: =H9*$I$7 -> 800 | J9: =H9+I9 -> 4800 | M9: =G9*$M$7 -> 75 | O9: =J9-N9 -> 4800
A10: Ø | E10: Water-soluble fertilizers, t
A11: Ø | E11: Mulching components, t
A12: Ø | G12: Working capital, SubTOTAL: | H12: =SUM(H8:H11) -> 4500 | I12: =SUM(I8:I11) -> 900 | J12: =SUM(J8:J11) -> 5400 | M12: =SUM(M8:M11) -> 150 | O12: =SUM(O8:O11) -> 5400
E13: Local market products Working capital, SubTOTAL: | H13: =J13/(I7+100%) -> 250000 | I13: =H13*$I$7 -> 50000 | J13: =BUDGET!V11 -> 300000 | N13: =SUM(BUDGET!G11:I11) -> 60000 | O13: =SUM(BUDGET!J11:O11) -> 120000
G14: Loan "C", WORKING CAPITAL, TOTAL: | H14: =SUM(H8:H13) -> 259000 | I14: =SUM(I8:I13) -> 51800 | J14: =SUM(J12:J13) -> 305400 | O14: Loan "A"
B15: A. | D15: CAPITAL INVESTMENT IMPORT (Loan "A") Export Project Finance Program
C16: 1 | D16: 10000 | E16: Greenhouse turn-key complex | G16: 120 | H16: =D16*G16 -> 1200000 | I16: =H16*$I$7 -> 240000 | J16: =H16+I16 -> 1440000 | M16: =H16*$M$7 -> 180000 | N16: =J16*$M$7 -> 216000 | O16: =J16-M16 -> 1260000
E17: Laboratory equipment
A18: Ø | D18: 30 | E18: Photovoltaic power panels | G18: 14000
E19: Inventory - scissors for cutting sheets, etc.
D20: 1 | E20: El. generator - backup power | G20: 15000 | H20: =D20*G20 -> 15000 | I20: =H20*$I$7 -> 3000 | J20: =H20+I20 -> 18000 | M20: =H20*$M$7 -> 2250 | N20: =J20*$M$7 -> 2700 | O20: =J20-M20 -> 15750
D21: 1 | E21: Reefer trailers, 5MT | G21: 25000 | H21: =D21*G21 -> 25000 | I21: =H21*$I$7 -> 5000 | J21: =H21+I21 -> 30000 | M21: =H21*$M$7 -> 3750 | N21: =J21*$M$7 -> 4500 | O21: =J21-N21 -> 25500
D22: 1 | E22: Truck | G22: 35000 | H22: =D22*G22 -> 35000 | I22: =H22*$I$7 -> 7000 | J22: =H22+I22 -> 42000 | M22: =H22*$M$7 -> 5250 | N22: =J22*$M$7 -> 6300 | O22: =J22-N22 -> 35700
D23: 1 | E23: Forklift and trailer | G23: 12000 | H23: =D23*G23 -> 12000 | I23: =H23*$I$7 -> 2400 | J23: 14400 | M23: =H23*$M$7 -> 1800 | N23: =J23*$M$7 -> 2160 | O23: =J23-N23 -> 12240
G24: Capital investment import, Sub TOTAL: | H24: =SUM(H16:H22) -> 1275000 | I24: =SUM(I16:I23) -> 257400 | J24: =SUM(J16:J23) -> 1544400 | M24: =SUM(M16:M23) -> 193050 | N24: =SUM(N16:N23) -> 231660 | O24: =SUM(O16:O23) -> 1349190
G25: Loan "A", EXPORT VALUE, TOTAL: | H25: =H12+H24 -> 1279500 | I25: =I12+I24 -> 258300 | J25: =J12+J24 -> 1549800 | M25: =M12+M24 -> 193200 | N25: =N24 -> 231660 | O25: =O12+O24 -> 1354590
E27: LOCAL COUNTRY COSTS (Loan "A") | I27: VAT | J27: € | N27: Up to 30% of Loan "A" ↓ . | O27: =O6 -> Settlement
G28: =G6 -> Single Prc | H28: Local Price | I28: 0.2 | J28: =J6 -> TOTAL PRICE | L28: Net values | N28: Net + VAT | O28: =O4 -> 2017-06-30
C29: Capital investment | H29: =SUM(H30:H39) -> 314900 | I29: =SUM(I30:I39) -> 59500 | J29: =SUM(J30:J39) -> 374400 | M29: =SUM(M30:M39) -> 47235 | N29: =SUM(N30:N39) -> 50760 | O29: =SUM(O30:O39) -> 287640
A30: Ø | C30: 1.5 | D30: 15000 | E30: Land purchase | G30: 3.5 | H30: =D30*G30 -> 52500 | I30: =H30*$I$28 -> 10500 | J30: =H30+I30 -> 63000 | M30: =H30*$M$7 -> 7875 | N30: =J30*$M$7 -> 9450 | O30: =J30-N30 -> 53550
D31: Building(s) existung on the land
D32: Building(s), repair and reconstruction
D33: Infrastructure - road, hedge, water § power supply, sanitation | H33: 200000 | I33: =$I$28*H33 -> 40000 | J33: =H33+I33 -> 240000 | M33: =H33*$M$7 -> 30000 | N33: =J33*$M$7 -> 36000 | O33: =J33-N33 -> 204000
A34: Ø | C34: 1 | D34: Compost facility | G34: 15000 | H34: =C34*G34 -> 15000 | I34: =$I$28*H34 -> 3000 | J34: =H34+I34 -> 18000 | M34: 2250 | N34: =J34*$M$7 -> 2700 | O34: 15300
A35: Ø | C35: 1 | D35: Motor car | G35: 30000 | H35: =C35*G35 -> 30000 | I35: =$I$28*H35 -> 6000 | J35: =H35+I35 -> 36000 | M35: 4500
A36: Ø | C36: 2 | D36: Personal computers | G36: 600 | H36: =C36*G36 -> 1200 | I36: 0 | J36: 1200 | M36: 180 | N36: 180 | O36: 1020
A37: Ø | C37: 1 | D37: Video monitoring online on the site | G37: 1200 | H37: =C37*G37 -> 1200 | I37: 0 | J37: 1200 | M37: 180 | N37: =J37*$M$7 -> 180 | O37: 1020
D38: Office equipment - printer, scanner, monitor, software, etc. | H38: 3000 | I38: 0 | J38: 3000 | M38: 450 | N38: 450 | O38: 2550
D39: Other - inventory (scissors for cutting sheet, disinfection courts, etc.) | H39: 12000 | I39: 0 | J39: 12000 | M39: 1800 | N39: 1800 | O39: 10200
A40: Ø | C40: Financial model package and Online Cash-Flow Control System | H40: =SUM(H41:H42) -> 175000 | I40: =SUM(I41:I42) -> 0 | J40: =SUM(J41:J42) -> 175000 | M40: =SUM(M41:M42) -> 26250 | N40: =SUM(N41:N42) -> 26250 | O40: =SUM(O41:O42) -> 148750
A41: Ø | C41: Cash-flow budgeting, profitability and sensitivity analysis | H41: 150000 | J41: =H41+I41 -> 150000 | M41: =H41*$M$7 -> 22500 | N41: =J41*$M$7 -> 22500 | O41: =J41-N41 -> 127500
A42: Ø | C42: Financial risk assessment and predesign risk management | H42: 25000 | J42: =H42+I42 -> 25000 | M42: =H42*$M$7 -> 3750 | N42: =J42*$M$7 -> 3750 | O42: =J42-N42 -> 21250
G43: LOCAL COUNTRY COSTS, TOTAL: | H43: =ROUNDUP(H29+H40,-3) -> 490000 | J43: =J29+J40 -> 549400 | M43: Loan "B" | N43: Loan "B+" | O43: Loan "A+"
E44: Capital investment value, | F44: Loan "A" | G44: TOTAL: | H44: =H24+H43 -> 1765000 | I44: =J43/J44 -> 0.2623937339 | J44: =J24+J43 -> 2093800 | M44: =ROUND(M25+M40,-2) -> 219500 | N44: =ROUND(N25+N40,-2) -> 257900 | O44: =ROUND(O25+O29+O40,-2) -> 1791000
I45: Loan "A" ─ 85% of cap. goods and services (foreing export + up to 30% local costs), TOTAL: | J45: =O44 -> 1791000 | M45: Loan "C": | N45: =J14 -> 305400
B47: C. | E47: SUMMARY OF LOANS | G47: Loans: | H47: "A" | I47: "B" | J47: "C" | M47: Loan" VAT" | N47: ─ option | O47: =I48 -> 0.055
A48: Ø | G48: Ann. Interest: | H48: 0.04 | I48: 0.055 | J48: 0.035 | M48: =M4 -> 2016-12-31 | O48: =O4 -> 2017-06-30
A49: Ø | C49: =F49*H44 -> 1765 | E49: Commitment exposure fee: | F49: 0.001 | G49: Inv. value: | H49: =J45 -> 1791000 | I49: =N44 -> 257900 | J49: =N45 -> 305400 | M49: KEY NOTES:
C50: Insurance | E50: Rate | F50: DEPRECIATION OF ASSETS | I50: TOTAL: | J50: =SUM(J52:J56) -> 54450 | M50: 1. Gradient | N50: Cell | O50: , icons or and partial border recipient of first input cash or
A51: Ø | C51: 0.008 | D51: =C51*I51 -> 9600 | E51: 0.15 | F51: up to; for industry equipment | I51: =H16 -> 1200000 | J51: =I51*E51 -> 180000 | M51: - for % or others, with URLs to data resources. All the rest represent computed results.
A52: Ø | E52: 0.04 | F52: Building | I52: 0 | J52: =I52*E52 -> 0
A53: Ø | E53: 0.5 | F53: Office equipment | I53: =SUM(H36:H38) -> 5400 | J53: =E53*I53 -> 2700 | M53: 2. The note or forward to Internet sorces.
A54: Ø | C54: 0.09 | D54: =C54*I54 -> 2700 | E54: 0.25 | F54: Motor car | I54: =H35 -> 30000 | J54: =E54*I54 -> 7500 | M54: 3. Magnifier | N54: icon provides interactive links to business dictionaries or other resources.
A55: Ø | C55: 0.04 | D55: =C55*I55 -> 2880 | E55: 0.25 | F55: Trucks | I55: =SUM(H21:H23) -> 72000 | J55: =E55*I55 -> 18000 | M55: 4. Info icons | N55: provides link to aoutor's information sources.
A56: Ø | D56: =SUM(D51:D55) -> 15180 | E56: 0.15 | F56: Intangible assets (VB operat. plan) | I56: =H40 -> 175000 | J56: =H40*E56 -> 26250 | M56: Various fonts and background colors represent similar group data resources.
W57: Go to BUDGET
A60: Ø | B60: Indications of first input-data rows | F60: ↑ This fee is supposed to ECA
C61: × Go back to Intro

Sheet BUDGET
A1: Level | B1: PRE-DESIGN BACKGROUND. | C1: Sales | D1: 2015-07-31 | E1: 2015-08-31 | F1: 2015-09-30 | G1: 2015-10-31 | H1: 2015-11-30 | I1: 2015-12-31 | J1: 2016-01-31 | K1: 2016-02-28 | L1: 2016-03-31 | M1: 2016-04-30 | N1: 2016-05-31 | O1: =C13 -> 2016-06-30 | P1: ↓ Earn from | Q1: 0.1 | S1: Earn p.а./1 ha
B2: Quantity and value of production. | C2: QTY C p.m., t | D2: =0*A46*100 -> 0 | E2: =$P$2*$Q$2/$Q$1/10 -> 14 | F2: 14 | G2: 14 | H2: 14 | I2: =$P$2*$Q$2/$Q$1/10 -> 14 | J2: =0*A46*100 -> 0 | K2: 14 | L2: 14 | M2: 14 | N2: =$P$2*$Q$2/$Q$1/10 -> 14 | O2: =$P$2*$Q$2/$Q$1/10 -> 14 | P2: =Intro!Q18 -> 70 | Q2: =A46 -> 0.2
B3: Business Plan - Exhibit A | C3: Income C p.m. | D3: =D2*Intro!$R$18 -> 0 | E3: =E2*Intro!$R$18 -> 13300 | F3: =F2*Intro!$R$18 -> 13300 | G3: =G2*Intro!$R$18 -> 13300 | H3: =H2*Intro!$R$18 -> 13300 | I3: =I2*Intro!$R$18 -> 13300 | J3: =J2*Intro!$R$18 -> 0 | K3: =K2*Intro!$R$18 -> 13300 | L3: =L2*Intro!$R$18 -> 13300 | M3: =M2*Intro!$R$18 -> 13300 | N3: =N2*Intro!$R$18 -> 13300 | O3: =O2*Intro!$R$18 -> 13300 | P3: =SUM(D3:O3) -> 133000 | Q3: =70*0.2*10000 -> 140000 | R3: =IF(P3=Q3,"True","False") -> False
A4: ='Cap.Goods'!O44 -> 1791000 | B4:  ECA's Support (Loan "A") | C4: QTY T p.m., t | D4: 0 | E4: 0 | F4: =$P$4*$Q$4/$Q$1/10 -> 72 | G4: 72 | H4: 72 | I4: 72 | J4: 72 | K4: 72 | L4: 72 | M4: =$P$4*$Q$4/$Q$1/10 -> 72 | N4: =$P$4*$Q$4/$Q$1/10 -> 72 | O4: =$P$4*$Q$4/$Q$1/10 -> 72 | P4: =Intro!Q19 -> 90 | Q4: =A47 -> 0.8
A5: ='Cap.Goods'!N44 -> 257900 | B5:  Cash Payment (Loan "B") | C5: Income T p.m. | D5: =D4*Intro!$R$19 -> 0 | E5: =E4*Intro!$R$19 -> 0 | F5: =F4*Intro!$R$19 -> 82080 | G5: =G4*Intro!$R$19 -> 82080 | H5: =H4*Intro!$R$19 -> 82080 | I5: =I4*Intro!$R$19 -> 82080 | J5: =J4*Intro!$R$19 -> 82080 | K5: =K4*Intro!$R$19 -> 82080 | L5: =L4*Intro!$R$19 -> 82080 | M5: =M4*Intro!$R$19 -> 82080 | N5: =N4*Intro!$R$19 -> 82080 | O5: =O4*Intro!$R$19 -> 82080 | P5: =SUM(D5:O5) -> 820800
C6: Costs | P6: =SUM(P7:P10) -> 5400
C7: Plant material C | D7: =$P$7/12 -> 50 | E7: 50 | F7: 50 | G7: 50 | H7: 50 | I7: 50 | J7: 50 | K7: 50 | L7: 50 | M7: 50 | N7: 50 | O7: =$P$7/12 -> 50 | P7: ='Cap.Goods'!J8 -> 600
C8: Plant material T | D8: =$P$8/12 -> 400 | E8: 400 | F8: 400 | G8: 400 | H8: 400 | I8: 400 | J8: 400 | K8: 400 | L8: 400 | M8: 400 | N8: 400 | O8: =$P$8/12 -> 400 | P8: ='Cap.Goods'!J9 -> 4800
C9: Mulching components
C10: Water-soluble fertilizers | P10: =SUM(E10:O10) -> 0
B11: For export: | C11: Market products | D11: 20000 | E11: 20000 | F11: 20000 | G11: 20000 | H11: 20000 | I11: 20000 | J11: 20000 | K11: 20000 | L11: 20000 | M11: 20000 | N11: 20000 | O11: 20000 | P11: 20000 | Q11: 20000 | R11: 20000 | V11: =SUM(D11:S11) -> 300000
A12: ='Cap.Goods'!J44 -> 2093800 | B12: Capital Investment with VAT | C12: Start-up date | D12: 6 | E12: 12 | F12: 18 | G12: 24 | H12: 30 | I12: =H12+6 -> 36 | J12: 42 | K12: 48 | L12: 54 | M12: 60 | N12: 66 | O12: 72 | P12: =O12+6 -> 78 | Q12: =P12+6 -> 84 | R12: =Q12+6 -> 90 | S12: =R12+6 -> 96
B13: Date : | C13: 2016-06-30 | D13: 2016-12-31 | E13: 2017-06-30 | F13: 2017-12-31 | G13: 2018-06-30 | H13: 2018-12-31 | I13: 2019-06-30 | J13: 2019-12-31 | K13: 2020-06-30 | L13: 2020-12-31 | M13: 2021-06-30 | N13: 2021-12-31 | O13: 2022-06-30 | P13: 2022-12-31 | Q13: 2023-06-30 | R13: 2023-12-31 | S13: 2024-06-30
B14: End of Period: | D14: 1 | E14: =D14+1 -> 2 | F14: =E14+1 -> 3 | G14: =F14+1 -> 4 | H14: 5 | I14: 6 | J14: 7 | K14: 8 | L14: 9 | M14: 10 | N14: =M14+1 -> 11 | O14: =N14+1 -> 12 | P14: =O14+1 -> 13 | Q14: =P14+1 -> 14 | R14: 15 | S14: =R14+1 -> 16
B15: Investment, Loan "A" | C15: =SUM(D15:F15) -> 1765000 | E15: ='Cap.Goods'!H35 -> 30000 | F15: ='Cap.Goods'!H44-E15 -> 1735000
B16: Com. Bank, Own Funds, Loan "B" | C16: =SUM(D16:F16) -> 257900 | E16: ='Cap.Goods'!N44 -> 257900
B17: Capital Investment: | C17: =SUM(D17:F17) -> 2022900 | D17: =D15+D16 -> 0 | E17: =E15+E16 -> 287900 | F17: =F15+F16 -> 1735000
B18: VAT:
A19: ='Cap.Goods'!N45 -> 305400 | B19:  Working Capital (Loan"C") | C19: =A19 -> 305400 | D19: =SUM(G11:I11) -> 60000 | E19: =SUM(J11:O11) -> 120000 | F19: =SUM($J$11:$O$11)+$P$6/2 -> 122700 | G19: =SUM($D$11:$I$11)+$P$6/2 -> 122700 | H19: =SUM($J$11:$O$11)+$P$6/2 -> 122700 | I19: =SUM($D$11:$I$11)+$P$6/2 -> 122700 | J19: =SUM($J$11:$O$11)+$P$6/2 -> 122700 | K19: =SUM($D$11:$I$11)+$P$6/2 -> 122700 | L19: =SUM($J$11:$O$11)+$P$6/2 -> 122700 | M19: =SUM($D$11:$I$11)+$P$6/2 -> 122700 | N19: =SUM($J$11:$O$11)+$P$6/2 -> 122700 | O19: =SUM($D$11:$I$11)+$P$6/2 -> 122700 | P19: =SUM($J$11:$O$11)+$P$6/2 -> 122700 | Q19: =SUM($D$11:$I$11)+$P$6/2 -> 122700 | R19: =SUM($J$11:$O$11)+$P$6/2 -> 122700
A20: Sales, | B20: Revenue Pro-forma Budget | C20: =SUM(D20:P20) -> 6459300 | D20: =D44 -> 0 | E20: =E44 -> 146400 | F20: =F44 -> 146400 | G20: =G44 -> 638880 | H20: =H44 -> 541220 | I20: =I44 -> 705380 | J20: 541220 | K20: 705380 | L20: 541220 | M20: =M44 -> 705380 | N20: =N44 -> 541220 | O20: 705380 | P20: =P44 -> 541220 | Q20: =Q44 -> 705380 | R20: =R44 -> 541220 | S20: =S44 -> 705380
A21: Less: | B21: Date: | C21: =C13 -> 2016-06-30 | D21: 2016-12-31 | E21: 2017-06-30 | F21: 2017-12-31 | G21: 2018-06-30 | H21: 2018-12-31 | I21: 2019-06-30 | J21: 2019-12-31 | K21: 2020-06-30 | L21: 2020-12-31 | M21: 2021-06-30 | N21: 2021-12-31 | O21: 2022-06-30 | P21: 2022-12-31 | Q21: 2023-06-30 | R21: 2023-12-31 | S21: 2024-06-30
A22: Costs, | B22: TOTAL (in €) | C22: =SUM(D22:P22) -> 3769397.808 | D22: =SUM(D23:D25) -> 1765 | E22: =SUM(E23:E26) -> 27629.59184 | F22: =SUM(F23:F26) -> 168033.5918 | G22: =SUM(G23:G26) -> 332385.8 | H22: =SUM(H23:H26) -> 336647.7 | I22: =SUM(I23:I26) -> 383221.7 | J22: 339002.9 | K22: 382926.7688 | L22: 341433.4664 | M22: =SUM(M23:M26) -> 385408.7998 | N22: 343941.8109 | O22: 380470.2558 | P22: =SUM(P23:P26) -> 346530.4225 | Q22: =SUM(Q23:Q26) -> 384017.4696 | R22: =SUM(R23:R26) -> 349201.8696 | S22: =SUM(S23:S26) -> 389474.403
A23: Variable costs | C23: =C54 -> 553550 | D23: =D54 -> 0 | E23: =E54 -> 0 | F23: 125124 | G23: 269135.8 | H23: =H54 -> 265717.7 | I23: 273021.7 | J23: 267276.1 | K23: 274629.9688 | L23: 268884.3688 | M23: 276289.7022 | N23: 270544.1022 | O23: 278002.5471 | P23: 272256.9471 | Q23: 279770.203 | R23: 274024.603 | S23: 281594.4239
A24: Fixed costs | C24: =C64 -> 87980 | D24: =D64 -> 1765 | E24: =E64 -> 8279.591837 | F24: =F64 -> 23559.59184 | G24: 36400 | H24: =H64 -> 51580 | I24: 36400 | J24: 52376.8 | K24: 37196.8 | L24: 53199.0976 | M24: 38019.0976 | N24: 54047.70872 | O24: 38867.70872 | P24: 54923.4754 | Q24: 40647.26662 | R24: 55827.26662 | S24: 41579.97915
A25: % of sales for marketing and RM | C25: =C70+C71 -> 38700 | D25: =D70+D71 -> 0 | E25: =E70+E71 -> 19350 | F25: 19350 | G25: 19350 | H25: 19350 | I25: 19350 | J25: 19350 | K25: 19350 | L25: 19350 | M25: 19350 | N25: 19350 | O25: 19350 | P25: 19350 | Q25: 19350 | R25: =R70+R71 -> 19350 | S25: =S70+S71 -> 19350
A26: Depreciations (in $) | C26: ='Cap.Goods'!J50 -> 54450 | G26: ='Cap.Goods'!J54 -> 7500 | I26: =$C$26 -> 54450 | K26: =$C$26-'Cap.Goods'!$J$53 -> 51750 | M26: =$C$26-'Cap.Goods'!$J$53 -> 51750 | O26: =$C$26-'Cap.Goods'!$J$53-'Cap.Goods'!$J$54 -> 44250 | Q26: =$C$26-'Cap.Goods'!$J$53-'Cap.Goods'!$J$54 -> 44250 | S26: =$C$26-'Cap.Goods'!$J$54 -> 46950
B27: Cash Flows: | D27: =D20-D22 -> -1765 | E27: =E20-E22 -> 118770.4082 | F27: =F20-F22 -> -21633.59184 | G27: =G20-G22 -> 306494.2 | H27: =H20-H22 -> 204572.3 | I27: =I20-I22 -> 322158.3 | J27: =J20-J22 -> 202217.1 | K27: 322453.2312 | L27: =L20-L22 -> 199786.5336 | M27: =M20-M22 -> 319971.2002 | N27: 197278.1891 | O27: 324909.7442 | P27: =P20-P22 -> 194689.5775 | Q27: =Q20-Q22 -> 321362.5304 | R27: =R20-R22 -> 192018.1304 | S27: =S20-S22 -> 315905.597
A28: Less: | B28: Interests Loans "A"+"B" | D28: =D88+D94 -> 0 | E28: =E88+E94 -> 7092.25 | F28: =F88+F94 -> 13989.46313 | G28: =G88+G94 -> 41213 | H28: =H88+H94 -> 37826 | I28: 31808 | J28: =J88+J94 -> 26266 | K28: 21249 | L28: 16750 | M28: 12768 | N28: 9305 | O28: 6365 | P28: 3958 | Q28: 2096 | R28: 799 | S28: 91
B29: EBT | D29: =D27-D28 -> -1765 | E29: =E27-E28 -> 111678.1582 | F29: =F27-F28 -> -35623.05496 | G29: =G27-G28 -> 265281.2 | H29: =H27-H28 -> 166746.3 | I29: =I27-I28 -> 290350.3 | J29: =J27-J28 -> 175951.1 | K29: =K27-K28 -> 301204.2312 | L29: 183036.5336 | M29: =M27-M28 -> 307203.2002 | N29: 187973.1891 | O29: 318544.7442 | P29: =P27-P28 -> 190731.5775 | Q29: =Q27-Q28 -> 319266.5304 | R29: =R27-R28 -> 191219.1304 | S29: =S27-S28 -> 315814.597
A30: Less: | B30: Income tax | C30: 0.1 | E30: =$C$30*D29 -> -176.5 | G30: =$C$30*(E29+F29) -> 7605.51032 | I30: =$C$30*(G29+H29) -> 43202.75 | K30: =$C$30*(I29+J29) -> 46630.14 | M30: =$C$30*(K29+L29) -> 48424.07648 | O30: =$C$30*(M29+N29) -> 49517.63893 | Q30: =$C$30*(O29+P29) -> 50927.63217 | S30: =$C$30*(Q29+R29) -> 51048.56608
B31: Advance deposit
B32: EAT | C32: =SUM(D32:P32) -> 2266108.863 | D32: =D29-D30-D31 -> -1765 | E32: =E29-E30-E31 -> 111854.6582 | F32: =F29-F30-F31 -> -35623.05496 | G32: =G29-G30-G31 -> 257675.6897 | H32: =H29-H30-H31 -> 166746.3 | I32: =I29-I30-I31 -> 247147.55 | J32: =J29-J30-J31 -> 175951.1 | K32: 254574.0912 | L32: 183036.5336 | M32: =M29-M30-M31 -> 258779.1237 | N32: 187973.1891 | O32: 269027.1053 | P32: 190731.5775 | Q32: 268338.8982 | R32: 191219.1304 | S32: 264766.0309
A33: Add: | B33: Total depreciations | E33: =E26 -> 0 | G33: =G26 -> 7500 | I33: =I26 -> 54450 | K33: =K26 -> 51750 | M33: =M26 -> 51750 | O33: =O26 -> 44250 | Q33: =Q26 -> 44250
A34: Add: | B34: Tax advance deposited
A35: ► | B35: Operating Cash Flows | C35: =SUM(D35:P35) -> 2475808.863 | D35: =SUM(D32:D34) -> -1765 | E35: =SUM(E32:E34) -> 111854.6582 | F35: =SUM(F32:F34) -> -35623.05496 | G35: =SUM(G32:G34) -> 265175.6897 | H35: =SUM(H32:H34) -> 166746.3 | I35: =SUM(I32:I34) -> 301597.55 | J35: 175951.1 | K35: 306324.0912 | L35: 183036.5336 | M35: =SUM(M32:M34) -> 310529.1237 | N35: 187973.1891 | O35: 313277.1053 | P35: =SUM(P32:P34) -> 190731.5775 | Q35: =SUM(Q32:Q34) -> 312588.8982 | R35: =SUM(R32:R34) -> 191219.1304 | S35: =SUM(S32:S34) -> 264766.0309
A36: Less: | D36: =-D17 -> 0 | E36: -287900 | F36: =-F17 -> -1735000
A37: ► (NCFs) | B37: Project's Net Cash Flows | C37: =SUM(D37:P37) -> 452908.8633 | D37: =SUM(D35:D36) -> -1765 | E37: =SUM(E35:E36) -> -176045.3418 | F37: =SUM(F35:F36) -> -1770623.055 | G37: =SUM(G35:G36) -> 265175.6897 | H37: =SUM(H35:H36) -> 166746.3 | I37: =SUM(I35:I36) -> 301597.55 | J37: =SUM(J35:J36) -> 175951.1 | K37: 306324.0912 | L37: 183036.5336 | M37: 310529.1237 | N37: 187973.1891 | O37: 313277.1053 | P37: =SUM(P35:P36) -> 190731.5775 | Q37: =SUM(Q35:Q36) -> 312588.8982 | R37: =SUM(R35:R36) -> 191219.1304 | S37: =SUM(S35:S36) -> 264766.0309
A38: Less: | B38: Principal Loans (A+B) installments | D38: =-(D89+D95+D100) -> 0 | E38: =-(E89+E95+E100) -> 0 | F38: =-(F89+F95) -> 0 | G38: -137001 | H38: -139866 | I38: -142793 | J38: -145782 | K38: -148834 | L38: -151950 | M38: -155134 | N38: -158384 | O38: -161704 | P38: -165095 | Q38: =-(Q89+Q95) -> -168557 | R38: =-(R89+R95) -> -172094 | S38: =-(S89+S95) -> -175704 | V38: =SUM(D38:P38) -> -1506543
B39: Cash | D39: =SUM(D37:D38) -> -1765 | E39: =SUM(E37:E38) -> -176045.3418 | F39: =SUM(F37:F38) -> -1770623.055 | G39: 128174.6897 | H39: =SUM(H37:H38) -> 26880.3 | I39: =SUM(I37:I38) -> 158804.55 | J39: 30169.1 | K39: 157490.0912 | L39: =SUM(L37:L38) -> 31086.5336 | M39: 155395.1237 | N39: 29589.18908 | O39: 151573.1053 | P39: =SUM(P37:P38) -> 25636.57753 | Q39: =SUM(Q37:Q38) -> 144031.8982 | R39: =SUM(R37:R38) -> 19125.13041 | S39: =SUM(S37:S38) -> 89062.0309
A40: Cumulative NCFs (loan pay-off incl.) | D40: =D39 -> -1765 | E40: =D40+E39 -> -177810.3418 | F40: =E40+F39 -> -1948433.397 | G40: =F40+G39 -> -1820258.707 | H40: =G40+H39 -> -1793378.407 | I40: =H40+I39 -> -1634573.857 | J40: =I40+J39 -> -1604404.757 | K40: =J40+K39 -> -1446914.666 | L40: -1415828.132 | M40: -1260433.009 | N40: -1230843.82 | O40: =N40+O39 -> -1079270.714 | P40: =O40+P39 -> -1053634.137 | Q40: =P40+Q39 -> -909602.2385 | R40: =Q40+R39 -> -890477.1081 | S40: =R40+S39 -> -801415.0772
A43: Planning,ann. | B43: Income data Date : | C43: Calendar Year | D43: =D13 -> 2016-12-31 | E43: 2017-06-30 | F43: 2017-12-31 | G43: 2018-06-30 | H43: 2018-12-31 | I43: 2019-06-30 | J43: 2019-12-31 | K43: 2020-06-30 | L43: 2020-12-31 | M43: 2021-06-30 | N43: 2021-12-31 | O43: 2022-06-30 | P43: 2022-12-31 | Q43: 2023-06-30 | R43: 2023-12-31 | S43: =S21 -> 2024-06-30
A44: Planted area | B44: Sales Selected year <+> | C44: 1246600 | D44: =D45+D49 -> 0 | E44: =E45+E49 -> 146400 | F44: =F45+F49 -> 146400 | G44: =G45+G49 -> 638880 | H44: =H45+H49 -> 541220 | I44: =I45+I49 -> 705380 | J44: =J45+J49 -> 541220 | K44: 705380 | L44: 541220 | M44: =M45+M49 -> 705380 | N44: 541220 | O44: =O45+O49 -> 705380 | P44: 541220 | Q44: =Q45+Q49 -> 705380 | R44: =R45+R49 -> 541220 | S44: =S45+S49 -> 705380
A45: ='Cap.Goods'!C16 -> 1 | B45: ● Greenhouse own production | C45: 953800 | D45: =SUM(D46:D48) -> 0 | E45: =SUM(E46:E48) -> 0 | F45: =SUM(F46:F48) -> 0 | G45: =SUM(G46:G48) -> 492480 | H45: =SUM(H46:H48) -> 394820 | I45: =SUM(I46:I48) -> 558980 | J45: =SUM(J46:J48) -> 394820 | K45: =SUM(K46:K48) -> 558980 | L45: =SUM(L46:L48) -> 394820 | M45: =SUM(M46:M48) -> 558980 | N45: =SUM(N46:N48) -> 394820 | O45: =SUM(O46:O48) -> 558980 | P45: =SUM(P46:P48) -> 394820 | Q45: =SUM(Q46:Q48) -> 558980 | R45: =SUM(R46:R48) -> 394820 | S45: =SUM(S46:S48) -> 558980
A46: =A45-A47 -> 0.2 | B46: • Cucumbers | C46: 133000 | D46: 0 | E46: 0 | F46: 0 | G46: 0 | H46: =D3+E3+F3+G3+H3+I3 -> 66500 | I46: =J3+K3+L3+M3+N3+O3 -> 66500 | J46: =D3+E3+F3+G3+H3+I3 -> 66500 | K46: =J3+K3+L3+M3+N3+O3 -> 66500 | L46: =D3+E3+F3+G3+H3+I3 -> 66500 | M46: =J3+K3+L3+M3+N3+O3 -> 66500 | N46: =D3+E3+F3+G3+H3+I3 -> 66500 | O46: =J3+K3+L3+M3+N3+O3 -> 66500 | P46: =D3+E3+F3+G3+H3+I3 -> 66500 | Q46: =J3+K3+L3+M3+N3+O3 -> 66500 | R46: =D3+E3+F3+G3+H3+I3 -> 66500 | S46: =J3+K3+L3+M3+N3+O3 -> 66500
A47: 0.8 | B47: • Tomatoes | C47: 820800 | D47: 0 | E47: 0 | F47: 0 | G47: =J5+K5+L5+M5+N5+O5 -> 492480 | H47: =D5+E5+F5+G5+H5+I5 -> 328320 | I47: =J5+K5+L5+M5+N5+O5 -> 492480 | J47: =D5+E5+F5+G5+H5+I5 -> 328320 | K47: =J5+K5+L5+M5+N5+O5 -> 492480 | L47: =D5+E5+F5+G5+H5+I5 -> 328320 | M47: =J5+K5+L5+M5+N5+O5 -> 492480 | N47: =D5+E5+F5+G5+H5+I5 -> 328320 | O47: =J5+K5+L5+M5+N5+O5 -> 492480 | P47: =D5+E5+F5+G5+H5+I5 -> 328320 | Q47: =J5+K5+L5+M5+N5+O5 -> 492480 | R47: =D5+E5+F5+G5+H5+I5 -> 328320 | S47: =J5+K5+L5+M5+N5+O5 -> 492480
B48: • By-products | C48: 0
A49: 0.22 | B49: ○ Vegitables from the market | C49: =SUM(D49:P49) -> 1756800 | D49: 0 | E49: =SUM($J$11:$O$11)*(1+$A$49) -> 146400 | F49: =SUM($D$11:$I$11)*(1+$A$49) -> 146400 | G49: =SUM($J$11:$O$11)*(1+$A$49) -> 146400 | H49: =SUM($D$11:$I$11)*(1+$A$49) -> 146400 | I49: =SUM($J$11:$O$11)*(1+$A$49) -> 146400 | J49: =SUM($D$11:$I$11)*(1+$A$49) -> 146400 | K49: =SUM($J$11:$O$11)*(1+$A$49) -> 146400 | L49: =SUM($D$11:$I$11)*(1+$A$49) -> 146400 | M49: =SUM($J$11:$O$11)*(1+$A$49) -> 146400 | N49: =SUM($D$11:$I$11)*(1+$A$49) -> 146400 | O49: =SUM($J$11:$O$11)*(1+$A$49) -> 146400 | P49: =SUM($D$11:$I$11)*(1+$A$49) -> 146400 | Q49: =SUM($J$11:$O$11)*(1+$A$49) -> 146400 | R49: =SUM($D$11:$I$11)*(1+$A$49) -> 146400 | S49: =SUM($J$11:$O$11)*(1+$A$49) -> 146400
A50: Rows right- for monitoring & management | B50: ◦ Cucumbers
B51: ◦ Tomatoes
B52: ◦ Others
B53: Income data (in €), EU Zone Date : | C53: =C13 -> 2016-06-30 | D53: 2016-12-31 | E53: 2017-06-30 | F53: 2017-12-31 | G53: 2018-06-30 | H53: 2018-12-31 | I53: 2019-06-30 | J53: 2019-12-31 | K53: 2020-06-30 | L53: 2020-12-31 | M53: 2021-06-30 | N53: 2021-12-31 | O53: 2022-06-30 | P53: 2022-12-31 | Q53: 2023-06-30 | R53: 2023-12-31 | S53: =S21 -> 2024-06-30
B54: Variable costs | C54: =SUM(C55:C62) -> 553550 | D54: =SUM(D55:D62) -> 0 | E54: =SUM(E55:E62) -> 0 | F54: 125124 | G54: 269135.8 | H54: =SUM(H55:H62) -> 265717.7 | I54: 273021.7 | J54: 267276.1 | K54: 274629.9688 | L54: 268884.3688 | M54: 276289.7022 | N54: 270544.1022 | O54: 278002.5471 | P54: =SUM(P55:P62) -> 272256.9471 | Q54: =SUM(Q55:Q62) -> 279770.203 | R54: =SUM(R55:R62) -> 274024.603 | S54: =SUM(S55:S62) -> 281594.4239
A55: Included ↘ | B55: Seedlings, including ↘ | C55: =P7+P8 -> 5400 | D55: 0 | E55: 0 | F55: 0 | G55: =$C$55/2 -> 2700 | H55: =$C$55/2 -> 2700 | I55: 2700 | J55: 2700 | K55: 2700 | L55: 2700 | M55: 2700 | N55: 2700 | O55: 2700 | P55: 2700 | Q55: 2700 | R55: 2700 | S55: 2700
B56: Mulching components and fertilizers | D56: 0 | E56: 0 | F56: 0 | G56: =$C$56/2 -> 0 | H56: =$C$56/2 -> 0 | I56: 0 | J56: 0 | K56: 0 | L56: 0 | M56: 0 | N56: 0 | O56: 0 | P56: 0 | Q56: 0 | R56: 0 | S56: 0
B57: Local market vegitables | C57: =V11 -> 300000 | E57: 0 | F57: =SUM($M$11:$O$11)+SUM($D$11:$F$11) -> 120000 | G57: =SUM($J$11:$L$11)+SUM($G$11:$I$11) -> 120000 | H57: =SUM($M$11:$O$11)+SUM($D$11:$F$11) -> 120000 | I57: =SUM($J$11:$L$11)+SUM($G$11:$I$11) -> 120000 | J57: =SUM($M$11:$O$11)+SUM($D$11:$F$11) -> 120000 | K57: =SUM($J$11:$L$11)+SUM($G$11:$I$11) -> 120000 | L57: =SUM($M$11:$O$11)+SUM($D$11:$F$11) -> 120000 | M57: =SUM($J$11:$L$11)+SUM($G$11:$I$11) -> 120000 | N57: =SUM($M$11:$O$11)+SUM($D$11:$F$11) -> 120000 | O57: =SUM($J$11:$L$11)+SUM($G$11:$I$11) -> 120000 | P57: =SUM($M$11:$O$11)+SUM($D$11:$F$11) -> 120000 | Q57: =SUM($J$11:$L$11)+SUM($G$11:$I$11) -> 120000 | R57: =SUM($J$11:$L$11)+SUM($G$11:$I$11) -> 120000 | S57: =SUM($J$11:$L$11)+SUM($G$11:$I$11) -> 120000
A58: 0.035 | B58: Packing, transport, indirect costs | D58: =$A$58*D44 -> 0 | E58: 0 | F58: =$A$58*F44 -> 5124 | G58: 22360.8 | H58: 18942.7 | I58: 24688.3 | J58: 18942.7 | K58: 24688.3 | L58: 18942.7 | M58: 24688.3 | N58: 18942.7 | O58: 24688.3 | P58: 18942.7 | Q58: =$A$58*Q44 -> 24688.3 | R58: =$A$58*R44 -> 18942.7 | S58: =$A$58*S44 -> 24688.3
B59: Electric power - greenhose | C59: 25000 | F59: =D59 -> 0 | G59: =$C$59/2 -> 12500 | H59: =$C$59/2 -> 12500 | I59: 12500 | J59: 12500 | K59: 12500 | L59: 12500 | M59: 12500 | N59: 12500 | O59: 12500 | P59: 12500 | Q59: =$C$59/2 -> 12500 | R59: 12500 | S59: 12500
A60: 245000 | B60:   Gas for greenhouse heating | C60: =A60*A61 -> 85750 | D60: 0 | E60: 0 | F60: 0 | G60: =$C$60/2 -> 42875 | H60: =$C$60/2 -> 42875 | I60: 42875 | J60: 42875 | K60: 42875 | L60: 42875 | M60: 42875 | N60: 42875 | O60: 42875 | P60: 42875 | Q60: 42875 | R60: 42875 | S60: 42875
A61: 0.35 | B61: Other materials and services | C61: 40000 | G61: =$C61/2 -> 20000 | H61: =$C61/2 -> 20000 | I61: =$C61/2 -> 20000 | J61: 20000 | K61: 20000 | L61: 20000 | M61: 20000 | N61: 20000 | O61: 20000 | P61: 20000 | Q61: 20000 | R61: 20000 | S61: 20000
A62: 0.032 | B62: Payroll, production staff | C62: =ROUND(Staff!H24*2,-2) -> 97400 | D62: 0 | E62: =$D$62 -> 0 | F62: 0 | G62: =$C$62/2 -> 48700 | H62: =$C$62/2 -> 48700 | I62: =$H$62*(1+$A$62) -> 50258.4 | J62: =$H$62*(1+$A$62) -> 50258.4 | K62: =$I$62*(1+$A$62) -> 51866.6688 | L62: =$I$62*(1+$A$62) -> 51866.6688 | M62: =$K$62*(1+$A$62) -> 53526.4022 | N62: =$L$62*(1+$A$62) -> 53526.4022 | O62: =$M$62*(1+$A$62) -> 55239.24707 | P62: =$N$62*(1+$A$62) -> 55239.24707 | Q62: =$O$62*(1+$A$62) -> 57006.90298 | R62: =$O$62*(1+$A$62) -> 57006.90298 | S62: =$Q$62*(1+$A$62) -> 58831.12387
B63: Income Data: Date : | C63: Planning, ann. | D63: =C13 -> 2016-06-30 | E63: 2016-12-31 | F63: 2017-06-30 | G63: 2017-12-31 | H63: 2018-06-30 | I63: 2018-12-31 | J63: 2019-06-30 | K63: 2019-12-31 | L63: 2020-06-30 | M63: 2020-12-31 | N63: 2021-06-30 | O63: 2021-12-31 | P63: 2022-06-30 | Q63: =Q13 -> 2023-06-30 | R63: =R13 -> 2023-12-31 | S63: =S21 -> 2024-06-30
A64: ='Cap.Goods'!C49 -> 1765 | B64: Fixed costs p.a. | C64: =SUM(C65:C69) -> 87980 | D64: =A64+SUM(D65:D69) -> 1765 | E64: =SUM(E65:E69) -> 8279.591837 | F64: 23559.59184 | G64: 36400 | H64: 51580 | I64: 36400 | J64: 52376.8 | K64: 37196.8 | L64: 53199.0976 | M64: 38019.0976 | N64: 54047.70872 | O64: 38867.70872 | P64: 54923.4754 | Q64: 40647.26662 | R64: 55827.26662 | S64: 41579.97915
A65: 0.01 | B65: Office - phones, stationeries, power | C65: 4000 | E65: 300 | F65: 400 | G65: =$C$65/2 -> 2000 | H65: =$C$65/2 -> 2000 | I65: 2000 | J65: 2000 | K65: 2000 | L65: 2000 | M65: 2000 | N65: 2000 | O65: 2000 | P65: 2000 | Q65: 2000 | R65: 2000 | S65: 2000
B66: Cars - fuel and maintenance | C66: 10000 | D66: 0 | E66: 1000 | F66: =E66 -> 1000 | G66: =$C$66/2 -> 5000 | H66: =$C$66/2 -> 5000 | I66: 5000 | J66: 5000 | K66: 5000 | L66: 5000 | M66: 5000 | N66: 5000 | O66: 5000 | P66: 5000 | Q66: 5000 | R66: 5000 | S66: 5000
B67: Online control system and RM fee | C67: 9000 | D67: 0 | E67: 3000 | F67: 3000 | G67: =$C$67/2 -> 4500 | H67: =$C$67/2 -> 4500 | I67: =$C$67/2 -> 4500 | J67: 4500 | K67: 4500 | L67: 4500 | M67: 4500 | N67: 4500 | O67: 4500 | P67: 4500 | Q67: 4500 | R67: 4500 | S67: 4500
A68: 0.032 | B68: Payroll, administrative personnel | C68: =ROUND(Staff!H18*2,-2) -> 49800 | E68: =Staff!$H$8 -> 3979.591837 | F68: =Staff!$H$8 -> 3979.591837 | G68: =$C$68/2 -> 24900 | H68: =$C$68/2 -> 24900 | I68: =$C$68/2 -> 24900 | J68: =$G$68*(1+$A$68) -> 25696.8 | K68: =$G$68*(1+$A$68) -> 25696.8 | L68: =$K$68*(1+$A$68) -> 26519.0976 | M68: =$K$68*(1+$A$68) -> 26519.0976 | N68: =$M$68*(1+$A$68) -> 27367.70872 | O68: =$M$68*(1+$A$68) -> 27367.70872 | P68: =$O$68*(1+$A$68) -> 28243.4754 | Q68: =$P$68*(1+$A$68) -> 29147.26662 | R68: =$P$68*(1+$A$68) -> 29147.26662 | S68: =$Q$68*(1+$A$68) -> 30079.97915
B69: Insurance - building, products, cars | C69: ='Cap.Goods'!D56 -> 15180 | F69: =C69 -> 15180 | H69: =C69 -> 15180 | J69: =H69 -> 15180 | L69: =J69 -> 15180 | N69: =L69 -> 15180 | P69: =N69 -> 15180 | R69: =P69 -> 15180
A70: 0.002 | B70: of sales - IT and RA consultant | C70: =ROUND(A70*$C$20,-2) -> 12900 | E70: =$C$70/2 -> 6450 | F70: 6450 | G70: =$C$70/2 -> 6450 | H70: =$C$70/2 -> 6450 | I70: 6450 | J70: 6450 | K70: 6450 | L70: 6450 | M70: 6450 | N70: 6450 | O70: 6450 | P70: 6450 | Q70: 6450 | R70: 6450 | S70: 6450
A71: 0.004 | B71: of sales - marketing, exhibitions | C71: =ROUND(A71*$C$20,-2) -> 25800 | E71: =$C$71/2 -> 12900 | F71: 12900 | G71: 12900 | H71: 12900 | I71: 12900 | J71: 12900 | K71: 12900 | L71: 12900 | M71: 12900 | N71: 12900 | O71: 12900 | P71: 12900 | Q71: 12900 | R71: 12900 | S71: 12900
A74: Level | B74: PROFITABILITY ANALYSIS | C74: Years: | F74: 1 | G74: =F74+1 -> 2 | H74: 3 | I74: 4 | J74: 5 | K74: 6 | L74: 7
B75: 1-Yr period Operating Cash Flows | D75: Up front investment: | E75: =-C17 -> -2022900 | F75: =G37+H37 -> 431921.9897 | G75: =I37+J37 -> 477548.65 | H75: =K37+L37 -> 489360.6248 | I75: =M37+N37 -> 498502.3128 | J75: =O37+P37 -> 504008.6828 | K75: =Q37+R37 -> 503808.0286 | L75: =S37 -> 264766.0309 | T75: up
A76: Discount Cash Flow Models | F76: Level | G76: Default Risk Management | K76: Operational Risk Management
A77: Section MEASURING PROFITABILITY | G77: Section | M77: Section "SENSITIVITY ANALYSIS"
H78: PAYBACK PERIOD | K78: Simulation of Good Quality | M78: Fodders | N78: Simulation of Bed Quality
A79: Discount (hurdle) rate : | C79: 0.075 | D79: Loan Life Coverage Ratio: | H79: METHOD | K79: Made in U.S.A.  . | M79: from import | N79: From local country .
A80: Net Present Value (NPV for CADS) : | C80: =NPV(C79,E75:L75) -> 368772.054 | D80: LLCR= | E80: =C80/C89 -> 0.2089360079 | G80: Period: | H80: =G86+ROUNDDOWN(F129,0) -> 6 | I80: =I129 -> 0 | L80: 100 | M80: 0.65 | N80: 59
A81: IRR : | C81: =IRR(E75:L75) -> 0.1310227625 | D81: 0.075 | G81: Date: | H81: =D129 -> 2021-12-31 | I81: earliness | M81: Area of critical announcements
H82: Accelerated amortization of loans
A83: .pdf Business plan | M83: =IF(AND(N80>102,L80>80)," STOP! You've just entered a field of dream!","") -> 
B84: =B13 -> Date : | C84: 2016-06-30 | D84: 2016-12-31 | E84: 2017-06-30 | F84: 2017-12-31 | G84: 2018-06-30 | H84: 2018-12-31 | I84: 2019-06-30 | J84: 2019-12-31 | K84: 2020-06-30 | L84: 2020-12-31 | M84: 2021-06-30 | N84: 2021-12-31 | O84: 2022-06-30 | P84: 2022-12-31 | Q84: 2023-06-30 | R84: 2023-12-31 | T84: up
B85: LOANS Number of Periods: | C85: =C12 -> Start-up date | D85: 6 | E85: 12 | F85: 18 | G85: 24 | H85: 30 | I85: 36 | J85: 42 | K85: 48 | L85: 54 | M85: 60 | N85: 66 | O85: 72 | P85: 78 | R85: =R12 -> 90
A86: 6 | B86: Number of repayment periods | C86: =MATCH(50,G86:S86) -> 13 | G86: =D14 -> 1 | H86: 2 | I86: 3 | J86: 4 | K86: 5 | L86: 6 | M86: 7 | N86: 8 | O86: 9 | P86: 10 | Q86: 11 | R86: 12 | S86: 13
A87: ∑6 | B87: Loan "A", Balance liabilities | D87: =D15 -> 0 | E87: =E15+D87-D90 -> 30000 | F87: =F15+E87-E90 -> 1735000 | G87: =G15+F87-F90 -> 1735000 | H87: =H15+G87-G90 -> 1580071 | I87: =I15+H87-H90 -> 1425102 | J87: 1272763 | K87: 1122615 | L87: 974166 | M87: 826931 | N87: 680423 | O87: 534155 | P87: 387636 | Q87: 240366 | R87: 91838 | S87: -58474
A88: =SUM(D88:P88) -> 178162 | B88: Interest payments | C88: ='Cap.Goods'!H48 -> 0.04 | G88: =-ROUND(IPMT($C$88/2,G86,$C$86,F87),0) -> 34700 | H88: =-ROUND(IPMT($C$88/2,H86,$C$86,G87),0) -> 32336 | I88: =-ROUND(IPMT($C$88/2,I86,$C$86,H87),0) -> 27253 | J88: 22560 | K88: 18309 | L88: 14493 | M88: 11111 | N88: 8163 | O88: =-ROUND(IPMT($C$88/2,O86,$C$86,N87),0) -> 5652 | P88: 3585 | Q88: =-ROUND(IPMT($C$88/2,Q86,$C$86,P87),0) -> 1970 | R88: =-ROUND(IPMT($C$88/2,R86,$C$86,Q87),0) -> 822 | S88: =-ROUND(IPMT($C$88/2,S86,$C$86,R87),0) -> 159
A89: =ROUND(SUM(D89:S89),-1) -> 1765000 | B89: Principal installments | C89: =C15 -> 1765000 | G89: =-ROUND(PPMT($C$88/2,G86,$C$86,$C$89),0) -> 120229 | H89: =-ROUND(PPMT($C$88/2,H86,$C$86,$C$89),0) -> 122633 | I89: =-ROUND(PPMT($C$88/2,I86,$C$86,$C$89),0) -> 125086 | J89: =-ROUND(PPMT($C$88/2,J86,$C$86,$C$89),0) -> 127588 | K89: 130140 | L89: 132742 | M89: 135397 | N89: 138105 | O89: =-ROUND(PPMT($C$88/2,O86,$C$86,$C$89),0) -> 140867 | P89: =-ROUND(PPMT($C$88/2,P86,$C$86,$C$89),0) -> 143685 | Q89: =-ROUND(PPMT($C$88/2,Q86,$C$86,$C$89),0) -> 146558 | R89: =-ROUND(PPMT($C$88/2,R86,$C$86,$C$89),0) -> 149490 | S89: =-ROUND(PPMT($C$88/2,S86,$C$86,$C$89),0) -> 152479 | U89: =IF(A89=C89,TRUE,FALSE) -> TRUE
B90: Installments, TOTAL: | D90: =SUM(D87:D89) -> 0 | E90: 30000 | F90: =SUM(F88:F89) -> 0 | G90: =SUM(G88:G89) -> 154929 | H90: =SUM(H88:H89) -> 154969 | I90: 152339 | J90: 150148 | K90: 148449 | L90: =SUM(L88:L89) -> 147235 | M90: 146508 | N90: 146268 | O90: 146519 | P90: =SUM(P88:P89) -> 147270 | Q90: =SUM(Q88:Q89) -> 148528 | R90: =SUM(R88:R89) -> 150312 | S90: =SUM(S88:S89) -> 152638
A92: 6 | B92: Number of repayment periods | C92: =MATCH(50,G92:S92) -> 13 | G92: =D14 -> 1 | H92: 2 | I92: 3 | J92: 4 | K92: 5 | L92: 6 | M92: 7 | N92: 8 | O92: 9 | P92: 10 | Q92: =N14 -> 11 | R92: 12 | S92: 13 | X92: Gheck
A93: ∑6 | B93: Loan "B", Balance liabilities | E93: =E16 -> 257900 | F93: =E18+E93-E96 -> 250807.75 | G93: =F18+F93-F96 -> 236818.2869 | H93: =G18+G93-G96 -> 213533.2869 | I93: =H18+H93-H96 -> 190810.2869 | J93: 168548.2869 | K93: 146648.2869 | L93: 125014.2869 | M93: 103549.2869 | N93: 82155.28687 | O93: 60734.28687 | P93: 39184.28687 | Q93: 17401.28687 | R93: -4723.713125 | S93: -27304.71313
A94: =SUM(D94:P94) -> 50427.71313 | B94: Interest payments | C94: ='Cap.Goods'!I48 -> 0.055 | E94: =C94/2*E93 -> 7092.25 | F94: =C94/2*(E93+F93) -> 13989.46313 | G94: =-ROUND(IPMT($C$94/2,G92,$C$92,G93),0) -> 6513 | H94: =-ROUND(IPMT($C$94/2,H92,$C$92,H93),0) -> 5490 | I94: =-ROUND(IPMT($C$94/2,I92,$C$92,I93),0) -> 4555 | J94: 3706 | K94: 2940 | L94: 2257 | M94: 1657 | N94: 1142 | O94: =-ROUND(IPMT($C$94/2,O92,$C$92,O93),0) -> 713 | P94: =-ROUND(IPMT($C$94/2,P92,$C$92,P93),0) -> 373 | Q94: =-ROUND(IPMT($C$94/2,Q92,$C$92,Q93),0) -> 126 | R94: -23 | S94: -68
A95: =ROUND(SUM(D95:S95),-1) -> 257900 | B95: Principal installments | C95: =C16 -> 257900 | E95: 0 | F95: 0 | G95: =-ROUND(PPMT($C$94/2,G92,$C$92,$C$95),0) -> 16772 | H95: =-ROUND(PPMT($C$94/2,H92,$C$92,$C$95),0) -> 17233 | I95: =-ROUND(PPMT($C$94/2,I92,$C$92,$C$95),0) -> 17707 | J95: =-ROUND(PPMT($C$94/2,J92,$C$92,$C$95),0) -> 18194 | K95: =-ROUND(PPMT($C$94/2,K92,$C$92,$C$95),0) -> 18694 | L95: 19208 | M95: 19737 | N95: 20279 | O95: 20837 | P95: =-ROUND(PPMT($C$94/2,P92,$C$92,$C$95),0) -> 21410 | Q95: =-ROUND(PPMT($C$94/2,Q92,$C$92,$C$95),0) -> 21999 | R95: 22604 | S95: =-ROUND(PPMT($C$94/2,S92,$C$92,$C$95),0) -> 23225 | U95: =IF(A95=C95,TRUE,FALSE) -> TRUE
B96: Installments, TOTAL: | D96: =SUM(D93:D95) -> 0 | E96: =SUM(E94:E95) -> 7092.25 | F96: =SUM(F94:F95) -> 13989.46313 | G96: =SUM(G94:G95) -> 23285 | H96: =SUM(H94:H95) -> 22723 | I96: 22262 | J96: 21900 | K96: 21634 | L96: 21465 | M96: 21394 | N96: 21421 | O96: 21550 | P96: =SUM(P94:P95) -> 21783 | Q96: =SUM(Q94:Q95) -> 22125 | R96: =SUM(R94:R95) -> 22581 | S96: =SUM(S94:S95) -> 23157
B98: Loan "C", Balance liabilities | E98: =$V$11/2 -> 150000 | F98: =$V$11/2 -> 150000 | G98: =$V$11/2 -> 150000 | H98: =$V$11/2 -> 150000 | I98: 150000 | J98: 150000 | K98: 150000 | L98: 150000 | M98: 150000 | N98: 150000 | O98: =$V$11/2 -> 150000 | P98: =$V$11/2 -> 150000 | Q98: 150000 | R98: 150000 | S98: 150000
B99: Interest payments | C99: ='Cap.Goods'!J48 -> 0.035 | E99: =C99/2*SUM(J11:O11) -> 2100 | F99: =C99/2*SUM(D11:I11) -> 2100 | G99: =C99/2*SUM(J11:O11) -> 2100 | H99: =C99/2*SUM(D11:I11) -> 2100 | I99: =C99/2*SUM(J11:O11) -> 2100 | J99: =C99/2*(SUM(D7:I7)+SUM(D8:I8)+SUM(D9:I9)+SUM(D10:I10)+SUM(D11:I11)) -> 2147.25 | K99: =C99/2*(SUM(J7:O7)+SUM(J8:O8)+SUM(J9:O9)+SUM(J10:O10)+SUM(J11:O11)) -> 2147.25 | L99: =C99/2*(SUM(D7:I7)+SUM(D8:I8)+SUM(D9:I9)+SUM(D10:I10)+SUM(D11:I11)) -> 2147.25 | M99: =C99/2*(SUM(J7:O7)+SUM(J8:O8)+SUM(J9:O9)+SUM(J10:O10)+SUM(J11:O11)) -> 2147.25 | N99: =C99/2*(SUM(D7:I7)+SUM(D8:I8)+SUM(D9:I9)+SUM(D10:I10)+SUM(D11:I11)) -> 2147.25 | O99: =C99/2*(SUM(J7:O7)+SUM(J8:O8)+SUM(J9:O9)+SUM(J10:O10)+SUM(J11:O11)) -> 2147.25 | P99: =C99/2*(SUM(D7:I7)+SUM(D8:I8)+SUM(D9:I9)+SUM(D10:I10)+SUM(D11:I11)) -> 2147.25 | Q99: =C99/2*(SUM(J7:O7)+SUM(J8:O8)+SUM(J9:O9)+SUM(J10:O10)+SUM(J11:O11)) -> 2147.25 | R99: =C99/2*(SUM(D7:I7)+SUM(D8:I8)+SUM(D9:I9)+SUM(D10:I10)+SUM(D11:I11)) -> 2147.25 | S99: =C99/2*(SUM(J7:O7)+SUM(J8:O8)+SUM(J9:O9)+SUM(J10:O10)+SUM(J11:O11)) -> 2147.25
B100: Principal deferred payments | C100: ='Cap.Goods'!N45 -> 305400 | F100: =E98 -> 150000 | G100: =F98 -> 150000 | H100: =G98 -> 150000 | I100: =H98 -> 150000 | J100: =I98 -> 150000 | K100: 150000 | L100: 150000 | M100: 150000 | N100: 150000 | O100: 150000 | P100: =O98 -> 150000 | Q100: =P98 -> 150000 | R100: 150000 | S100: =R98 -> 150000
B101: Installments, TOTAL: | E101: =SUM(E99:E100) -> 2100 | F101: =SUM(F99:F100) -> 152100 | G101: =SUM(G99:G100) -> 152100 | H101: 152100 | I101: 152100 | J101: 152147.25 | K101: 152147.25 | L101: 152147.25 | M101: 152147.25 | N101: 152147.25 | O101: =SUM(O99:O100) -> 152147.25 | P101: =SUM(P99:P100) -> 152147.25
B103: GRAPHS | D103: 1 | E103: =D103+1 -> 2 | F103: =E103+1 -> 3 | G103: 4 | H103: 5 | I103: 6 | J103: 7 | K103: 8 | L103: 9 | M103: 10 | N103: 11 | O103: 12 | P103: =O103+1 -> 13 | Q103: =P103+1 -> 14 | R103: 15
B104: Total balance liabilities, Loan "A" | D104: =D87 -> 0 | E104: 30000 | F104: =F87 -> 1735000 | G104: =G87 -> 1735000 | H104: =H87 -> 1580071 | I104: 1425102 | J104: 1272763 | K104: 1122615 | L104: 974166 | M104: 826931 | N104: 680423 | O104: 534155 | P104: 387636 | Q104: 240366 | R104: 91838
B105: Total balance liabilities "A"+"B" | D105: =D87+D93 -> 0 | E105: =E87+E93 -> 287900 | F105: =F87+F93 -> 1985807.75 | G105: =G87+G93 -> 1971818.287 | H105: 1793604.287 | I105: =I87+I93 -> 1615912.287 | J105: 1441311.287 | K105: 1269263.287 | L105: 1099180.287 | M105: 930480.2869 | N105: 762578.2869 | O105: =O87+O93 -> 594889.2869 | P105: =P87+P93 -> 426820.2869 | Q105: =Q87+Q93 -> 257767.2869 | R105: 87114.28687 | T105: up
B106: Cash | D106: =D39 -> -1765 | E106: -176045.3418 | F106: =F39 -> -1770623.055 | G106: =G39 -> 128174.6897 | H106: 26880.3 | I106: 158804.55 | J106: 30169.1 | K106: 157490.0912 | L106: 31086.5336 | M106: 155395.1237 | N106: 29589.18908 | O106: 151573.1053 | P106: 25636.57753 | Q106: 144031.8982 | R106: 19125.13041
B107: Cash Cumulative | D107: =D106 -> -1765 | E107: =D107+E106 -> -177810.3418 | F107: =E107+F106 -> -1948433.397 | G107: =F107+G106 -> -1820258.707 | H107: =G107+H106 -> -1793378.407 | I107: -1634573.857 | J107: -1604404.757 | K107: -1446914.666 | L107: -1415828.132 | M107: -1260433.009 | N107: -1230843.82 | O107: -1079270.714 | P107: =O107+P106 -> -1053634.137 | Q107: =P107+Q106 -> -909602.2385 | R107: -890477.1081
B108: Operating cash cumulative | D108: =D128 -> -1765 | E108: 110089.6582 | F108: 74466.6032 | G108: 339642.2929 | H108: 506388.5929 | I108: 807986.1429 | J108: 983937.2429 | K108: 1290261.334 | L108: 1473297.868 | M108: 1783826.991 | N108: 1971800.18 | O108: 2285077.286 | P108: 2475808.863 | Q108: 2788397.762 | R108: 2979616.892
C125: Debt Rate | D125: =D105/$C$17 -> 0 | E125: 0.1423204311 | F125: 0.9816638242 | G125: 0.9747482757 | H125: 0.8866500009 | I125: 0.7988097716 | J125: 0.7124975465 | K125: =K105/$C$17 -> 0.627447371 | L125: =L105/$C$17 -> 0.5433685733 | M125: 0.4599734475 | N125: 0.3769728048 | O125: 0.2940774566 | P125: 0.2109942592 | Q125: 0.1274246314 | R125: 0.04306405995
B126: =#REF! ->  | C126: =$A$12 -> 2093800
B127: Auxiliary raws: Crossing point of cash and debt | E127: Nr of 6-Mo periods: | F127: 1 | G127: =F127+1 -> 2 | H127: =G127+1 -> 3 | I127: 4 | J127: 5 | K127: 6 | L127: 7 | M127: 8 | N127: 9 | O127: 10 | P127: =O127+1 -> 11 | Q127: =P127+1 -> 12 | R127: 13
B128: Payback > cumulate OCFs | C128: =MATCH(C126,E128:O128) -> 10 | D128: =D35 -> -1765 | E128: =D128+E35 -> 110089.6582 | F128: 74466.6032 | G128: 339642.2929 | H128: 506388.5929 | I128: 807986.1429 | J128: 983937.2429 | K128: 1290261.334 | L128: 1473297.868 | M128: 1783826.991 | N128: 1971800.18 | O128: 2285077.286 | P128: 2475808.863 | Q128: 2788397.762 | R128: 2979616.892
B129: repayment estimation row | D129: =CHOOSE(C128,E84,F84,G84,H84,I84,J84,K84,L84,M84,N84,O84,P84) -> 2021-12-31 | E129: =C128*6 -> 60 | F129: =E129/12 -> 5 | G129: =ROUNDUP(F129,0) -> 5 | H129: =G129-F129 -> 0 | I129: =H129*12 -> 0
B130: auxiliary row | E130: =(D129-E84)/12 -> 137.0833333 | F130: =ROUNDDOWN(E130,0) -> 137 | G130: =E130-F130 -> 0.08333333333 | H130: =G130*12 -> 1 | I130: =IF(H130=12,F130+1,F130) -> 137 | J130: =IF(H130=12,0,H130) -> 1

Sheet Bayes
A1: CHAPTER 1 | B1: DECISION ANALYSIS | L1: Name of Project
B2: POSTERIOR PROBABILITIES OF TWO EVENTS | H2: Level | L2: ='Cap.Goods'!E3 -> Valister Greenhouse
A4: Background: | B4: You are ① producer and ② distributor of high quality vegetables of ❶own and ❷other Bulgarian suppliers to a large net of European buyers; they form posterior probabilities of two events.
A5: Historical Info: | B5: Enter new data below  from | D5: If except these two events of interest there are more probabilities indicated by the Online Cash-Flow Control System (OCFCS), go to the next Sheet | P5: 5 Events
A7: Event A1 QUANITTY | B7: Produce-Sale A1 QUANTITY | C7: =BUDGET!M80 -> 0.65 | D7: Percentage Good yield of own products―high revenue. | H7: The mutually exclusive events for which posterior probabilities are desired.
H8: My events of interest: QUANTITY SUPPLIED to Sales Dept. for distribution in EU markets
A9: Event A2 QUANTIITY | B9: Buy-Sale A2 QUANTITY | C9: =100%-C7 -> 0.35 | D9: Percentage of prior Bad probability I | F9: low quality products - bought and exported with lower income. | H9: A1 QUANTITY of Good quality own production of vegetables, sold to EU distributors at high cost. A2 QUANTITY of Bad quality vegitables from the local market, sold to EU distributors at low cost.
F10: In analysing of conditional prior probability for specific events of interest we indicated probabilities given new information and revised them here.
A11: Event A1 supplied QUALITY: | B11: Produce-Sale A1 QUANTITY | C11: =BUDGET!L80/100 -> 1 | D11: Percentage Good vegitables (G) sold. | F11: Based on the huge pre-design marketing research, the quantity and quality (sales) ratings of the two resources for supply of the products are as shown in the below Table SALES REVENUE EVENTS. With this new information we revise or update the conditional, prior probability values as percentage of the total QUANTITY for sale― Good yield from the better source, Supplier A1 and the Bad probability from both A1 ∩ A2 supply sourses. That will certainly cause a limited cash inflow. What is the posterior probability for the cause to be A1 U A2 supplier?
A13: Event A2 supplied QUALITY: | B13: Buy-Sale A2 QUANTITY | C13: =BUDGET!N80/100 -> 0.59 | D13: Percentage Bad vegitables (B) sold.
A15: Safe Event | C15: SALES REVENUE EVENTS | E15: PRIOR PROBABILITY | G15: POSTERIOR | K15: TABULAR APPROACH
A16: Restore Model | B16: When U pay - cry | C16: Percentage Good Fodder (G) | D16: Percentage Bad Fodder (B) | E16: QUANTITY % from A1∩A2 Products | G16: PROBABILITIES that Badpart of produc is: | K16: A1U A2 Prior Probabilities | L16: B Conditional Probabilities | M16: Joint Bad A1,2 ∩B | N16: Posterior Probabilities | P16: Others cry
A18: Clean Model | B18: Supplier A1 | C18: =C7*100 -> 65 | D18: =100%-C11 -> 0 | E18: =C11*100 -> 100 | G18: From Supplier A1: | I18: =D18*C7/(D18*C7+D20*C9) -> 0 | K18: =C18/100 -> 0.65 | L18: =D18 -> 0 | M18: =K18*L18 -> 0 | N18: =M18/M21 -> 0
B20: Supplier A2 | C20: =C9*100 -> 35 | D20: =100%-C13 -> 0.41 | E20: =100-E18 -> 0 | G20: From Supplier A2: | I20: =(100%-C13)*C9/((100%-C11)*C7+(100%-C13)*C9) -> 1 | K20: =C20/100 -> 0.35 | L20: =D20 -> 0.41 | M20: =K20*L20 -> 0.1435 | N20: =M20/M21 -> 1
A21: ANALYSIS: | B21: On relative basis the probability of the Bad event coming from Supplier 2 [ | F21: =N20 -> 1 | G21: ] compared [ | H21: =N18 -> 0 | I21: ] from Supplier 1. | K21: =SUM(K18:K20) -> 1 | L21: To the new info given each event | M21: =SUM(M18:M20) -> 0.1435 | N21: =SUM(N18:N20) -> 1 | P21: =M21*1+O21*1 -> 0.1435
B22: There is a greater likelihood the Bad event is observed because outcome [ | F22: =M20 -> 0.1435 | G22: ] following [ | H22: =L20/10 -> 0.041 | I22: ] A2's Bad supply to be a crash. | M22: Overall<probability of Bad event
A24: CLOSING: | B24: We applied Bayes' theorem, which is used extensively in decision analysis of the already made risk assessment, where the prior probabilities were subjective estimates requiring this specialized audit. The information and posterior probabilities are computed for a more objective presentation of the level of the risk of an event and its complement.
A26: Constructed using "Quantitative Methods for Business" (Fifth edition); David R. Anderson, University of Cincinnati, Dennis J. Sweeney, University of Cincinnati, Thomas A. Williams, Rochester Institute of Technology; Library of Congress Cataloging-in-Publication Data.
A28: COMMENTS: | B28: It is well known and certainly recommended that to start an investment project, the investor (and his team making inside risk assessment) must be convinced, must believe in the good outcome, and he must act decisively, without any hesitation. Very often, this is reflected in a low assessment of the Default Risk Ratio (d--Factor) that is raising its real impact. In such cases we approach the above probability estimation, often called “what-if” analysis. It follows the High Qualified Audit, in this Risk Assessment program recognized as Group D.
B31: Sample of comments of our clients of this model: ". . . default risk assessment is the starting point which most frequently cause arguments with the lenders, very often ending with denial of funding, no matter what the finally stated reason was." Look at the picture below, which is the most popular example of visible illusion.
C34: We are looking out to the market and don’t see a big risk to become unable to pay back the debt. | K34: Who is right, when the lengths of the lines are equal? . . . "
C36: The lenders are only looking within themselves, see plenty of risks, and talk only about that.
B38: In making a decision for new investments never believe and rely solely on: ① your intuition, based on long-term experience; ② suggestions of high level experts; and ③ chance.
B39: Rely only on risk assessment and computing of prior and posterior probability of specific events of interest. Once you have them, return to the above approaches for the final decision.
B40: The assessment of the Default Risk (d ) to an acceptable level is a key factor for the positive resolution of a loan application. The system, called OCFCS for short, that we recommend is an instrument that serves post factum an investment throughout the project providing current information to the lender, insurer and to the investor.
A44: RECORD: | B44: PROJECT NAME | D44: QUALITY | F44: QUANTITY | H44: The event . . .
B45: (or Investor Name) | D45: AGENT A1 | E45: AGENT A2 | F45: AGENT A1
B46: =L2 -> Valister Greenhouse | D46: 0.98 | E46: 0.95 | G46: 0.65 | H46: Agents distribute in their countries these percentages of KEM's products.
A48: Keep these h cells free for longer project name extention

Sheet Staff
D1: лв./$ exchange rate: | F1: 1 | G1: 1.48
D2: USD/EUR exchange rate: | F2: 1 | G2: 1.28
D3: EUR/лв. exchange rate: | F3: 1 | G3: 1.96 | J3: Supporting Column
C4: En | F4: STAFF - Start Salaries
D5: PERSONNEL, Position | E5: Nr | F5: €/Мо | G5: лв./Mo | H5: $ p.6Mo
D7: ASMINISTRATION | E7: =E31 -> 10
C8: 1 | D8: CEO | E8: 1 | F8: =F32 -> 663.2653061 | G8: =G32 -> 1300 | H8: 3979.591837
C9: 2 | D9: Chief Technologist | E9: 1 | F9: 561.2244898 | G9: 1100 | H9: 3367.346939
C10: 3 | D10: Accountant | E10: 1 | F10: 357.1428571 | G10: 700 | H10: 2142.857143
C11: 4 | D11: Technologist | E11: 0 | F11: 331.6326531 | G11: 650 | H11: 0
C12: 5 | D12: Sales Manager | E12: 1 | F12: 306.122449 | G12: 600 | H12: 1836.734694
C13: 6 | D13: Agronomist | E13: 0 | F13: 306.122449 | G13: 600 | H13: 0
C14: 8 | D14: Truckers | E14: 2 | F14: 306.122449 | G14: 600 | H14: 3673.469388
C15: 9 | D15: Security | E15: =E39 -> 4 | F15: =F39 -> 255.1020408 | G15: =G39 -> 500 | H15: =H39 -> 6122.44898
H16: =SUM(H8:H15) -> 21122.44898
D17: Benefits (averaged) | G17: =G47 -> 0.178 | H17: =G17*(1+H16) -> 3759.973918
D18: SubTOTAL: | H18: =SUM(H16:H17) -> 24882.4229
D19: PRODUCTION STAFF | E19: =SUM(E20:E21) -> 25 | F19: €/Мо | G19: BN/Mo
B20: 11 | D20: Payroll staff | E20: =E44 -> 25 | F20: =F44 -> 275.5102041 | G20: =G44 -> 540 | H20: =H44 -> 41326.53061
A21: Ø | B21: 12 | D21: Part time job | E21: =E45 -> 0 | G21: =G45/$G$1 -> 0
D22: TOTAL: | F22: =E46 -> 35 | H22: =H20 -> 41326.53061
D23: Benefits (averaged) | G23: =G41 -> 0.178 | H23: =G23*(1+H22) -> 7356.300449
D24: SubTOTAL: | H24: =SUM(H22:H23) -> 48682.83106
G25: TOTAL: | H25: =H18+H24 -> 73565.25396
F28: STAFF - Start Salaries
D29: PERSONNEL, Position | E29: Nr | F29: €/Мо | G29: лв./Mo | H29: $ p.6Mo
D31: ASMINISTRATION | E31: =SUM(E32:E39) -> 10
C32: =C8 -> 1 | D32: CEO | E32: 1 | F32: =G32/$G$3 -> 663.2653061 | G32: 1300 | H32: =E32*F32*6 -> 3979.591837
C33: =C9 -> 2 | D33: Chief Technologist | E33: 1 | F33: =G33/$G$3 -> 561.2244898 | G33: 1100 | H33: =E33*F33*6 -> 3367.346939
C34: =C10 -> 3 | D34: Accountant | E34: 1 | F34: 357.1428571 | G34: 700 | H34: 2142.857143
C35: 4 | D35: Technologist | E35: 0 | F35: 331.6326531 | G35: 650 | H35: 0
C36: 5 | D36: Sales Manager | E36: 1 | F36: 306.122449 | G36: 600 | H36: 1836.734694
C37: 6 | D37: Agronomist | E37: 0 | F37: 306.122449 | G37: 600 | H37: 0
C38: 8 | D38: Truckers | E38: 2 | F38: 306.122449 | G38: 600 | H38: 3673.469388
C39: 9 | D39: Security | E39: 4 | F39: =G39/$G$3 -> 255.1020408 | G39: 500 | H39: =E39*F39*6 -> 6122.44898
H40: =SUM(H32:H39) -> 21122.44898
D41: Benefits (averaged) | G41: 0.178 | H41: =G41*(1+H40) -> 3759.973918
D42: SubTOTAL: | H42: =SUM(H40:H41) -> 24882.4229
D43: PRODUCTION STAFF | E43: =E19 -> 25 | F43: €/мес. | G43: лв./мес.
D44: Payroll staff | E44: 25 | F44: =G44/$G$3 -> 275.5102041 | G44: 540 | H44: =E44*F44*6 -> 41326.53061
A45: Ø | B45: 12 | D45: Part time job | E45: 0 | G45: 0
D46: TOTAL: | E46: =E31+E43 -> 35 | H46: =H44 -> 41326.53061
D47: Benefits (averaged) | G47: =G41 -> 0.178 | H47: =G47*(1+H46) -> 7356.300449
D48: SubTOTAL: | H48: =SUM(H46:H47) -> 48682.83106
G49: ОБЩО: | H49: =H42+H48 -> 73565.25396
C52: * | D52: Consequence of the need of Effective System of Internal Control during the repayment period.
D53: It must have to this position special Assignment of Responsibilities combining virtual treasurer and controller.
D54: He should have Limited Proper Authorization during the loan repayment period only.
L68: Grace Period
L69: =G5 -> лв./Mo
L71: =G8 -> 1300
L73: =SUM(L71:L72) -> 1300
L74: =ROUND(L73*(0.42*0.75+0.07),0) -> 501
L75: =SUM(L73:L74) -> 1801

Sheet Bayes5
A1: CHAPTER 1 | F1: DECEISION ANALYSES | P1: Name of Project
B2: POSTERIOR PROBABILITIES OF FIVE EVENTS | P2: ='Cap.Goods'!E3 -> Valister Greenhouse
A4: Background: | B4: Five mutually exclusive events following delivery of goods or services by Suppliers where one of the events must occure when new information
A5: Clean and Start | B5: from a sample, a special report, a poduct test, and so on, about it is received. Henceforth, you have to revise or update the prior probability values.
A6: Historical Info: | B6: Good quality event  ENTER | H6: Complete here the here Bad parts or services received from eash supplier .
C7: QUALITY | G7: QUANTITY | I7: POSTRIOR PROBABILITY | K7: CONDITIONAL | M7: FINAL | O7: NOTES
C8: % Good | E8: % Bad | G8: % from | I8: that Bad event is: | K8: Joint Bad A1,2 ∩B | M8: for Ai
A9: Event A1 from: | B9: Supplier A1 (Subcontractor) | E9: =1-C9 -> 1 | I9: =100*E9*G9/($E$9*$G$9+$E$11*$G$11+$E$13*$G$13+$E$15*$G$15+$E$17*$G$17) -> 0 | K9: =100*G9*E9 -> 0 | M9: =K9/$K$19 -> 0
A11: Event A2 from: | B11: Supplier A2 (Subcontractor) | E11: =1-C11 -> 1 | I11: =100*E11*G11/($E$9*$G$9+$E$11*$G$11+$E$13*$G$13+$E$15*$G$15+$E$17*$G$17) -> 0 | K11: =100*G11*E11 -> 0 | M11: =K11/$K$19 -> 0
A13: Event A3 from: | B13: Supplier A3 (Subcontractor) | E13: =1-C13 -> 1 | I13: =100*E13*G13/($E$9*$G$9+$E$11*$G$11+$E$13*$G$13+$E$15*$G$15+$E$17*$G$17) -> 0 | K13: =100*G13*E13 -> 0 | M13: =K13/$K$19 -> 0
A15: Event A4 from: | B15: Supplier A4 (Subcontractor) | E15: =1-C15 -> 1 | I15: =100*E15*G15/($E$9*$G$9+$E$11*$G$11+$E$13*$G$13+$E$15*$G$15+$E$17*$G$17) -> 0 | K15: =100*G15*E15 -> 0 | M15: =K15/$K$19 -> 0
A17: Event A5 from: | B17: Supplier A5 (Subcontractor) | E17: =1-C17 -> 1 | G17: =1-SUM(G9:G15) -> 1 | I17: =100*E17*G17/($E$9*$G$9+$E$11*$G$11+$E$13*$G$13+$E$15*$G$15+$E$17*$G$17) -> 100 | K17: =100*G17*E17 -> 100 | M17: =K17/$K$19 -> 1
A19: See Commets | K19: =SUM(K9:K18) -> 100 | M19: =SUM(M9:M18) -> 1
K20: Overall<probability of happen Bad event
